lending/lending_fUSD_20250130
["ID","MTS","AMOUNT","RATE_DAILY","PERIOD"]
[350923649,1738203044326,-508.22843358,0.00019799,2]
[350923650,1738203044339,-510.59790017,0.00019799,2]
[350923651,1738203044349,-497.67830177,0.00019799,2]
[350923652,1738203044359,-502.47114312,0.00019799,2]
[350923653,1738203044368,-507.52881189,0.00019799,2]
[350923654,1738203044379,-507.25452948,0.00019799,2]
[350923655,1738203044388,-518.32802118,0.00019799,2]
[350923656,1738203044397,-621.38649051,0.00019799,2]
[350923657,1738203044409,-500.0,0.00019799,2]
[350923658,1738203044419,-500.0,0.00019799,2]
[350923659,1738203044430,-612.61355278,0.00019799,2]
[350923660,1738203044440,-505.79498193,0.00019799,2]
[350923661,1738203044450,-355.45466406,0.00019799,2]
[350923662,1738203044460,-500.0,0.00019799,2]
[350923663,1738203044472,-576.1918228,0.00019799,2]
[350923664,1738203044482,-132.43883921,0.000198,2]
[350923665,1738203044495,-27554.16630377,0.000198,2]
[350923666,1738203044506,-728.39843879,0.000198,2]
[350923667,1738203044517,-804.4,0.000198,2]
[350923668,1738203044529,-20104.5357876,0.000198,2]
[350923672,1738203046221,-325.91,0.00019762,2]
[350923674,1738203046293,-174.09,0.00019762,2]
[350923675,1738203046303,-2264.34008209,0.000198,2]
[350923676,1738203046315,-679.40528476,0.000198,2]
[350923677,1738203046327,-300.0,0.000198,2]
[350923678,1738203046344,-500.0,0.000198,2]
[350923679,1738203046367,-1993.50363819,0.000198,2]
[350923680,1738203046381,-322.8916,0.000198,2]
[350923681,1738203046393,-485.22732997,0.000198,2]
[350923682,1738203046472,-11246.86833246,0.000198,2]
[350923683,1738203046484,-2847.23246661,0.000198,2]
[350923684,1738203046497,-678.14139368,0.000198,2]
[350923685,1738203046509,-20395.09521998,0.000198,2]
[350923686,1738203046519,-186.53845944,0.000198,2]
[350923687,1738203046529,-23785.40437994,0.000198,3]
[350923688,1738203046543,-3092.969476,0.000198,3]
[350923689,1738203046570,-3121.62614406,0.000198,3]
[350923690,1738203046579,-500.0,0.0001984,2]
[350923691,1738203046589,-324.8,0.00019863,2]
[350923692,1738203046599,-500.0,0.00019863,2]
[350923693,1738203046608,-509.91056558,0.00019879,2]
[350923694,1738203046618,-502.37041231,0.00019879,2]
[350923695,1738203046627,-501.65129195,0.00019879,2]
[350923696,1738203046637,-636.7237021,0.0001988,2]
[350923697,1738203046649,-1220.31603624,0.0001988,2]
[350923698,1738203046660,-45753.29416879,0.0001988,2]
[350923812,1738203067752,266.702958,0.0001178,2]
[350923813,1738203090748,150.0,0.00021104,120]
[350923814,1738203103941,158.889255,0.0001178,2]
[350923815,1738203104261,158.889255,0.0001178,2]
[350923816,1738203104583,158.889255,0.0001178,2]
[350923817,1738203104914,158.889255,0.0001178,2]
[350923818,1738203105236,158.889255,0.00011999,2]
[350923819,1738203105561,158.889255,0.00011999,2]
[350923820,1738203106025,158.889255,0.00011999,2]
[350923821,1738203150728,150.0,0.00021574,120]
[350923822,1738203193518,160.223123,0.00023,120]
[350923823,1738203195747,2000.0,0.00023,120]
[350923824,1738203208022,200.0,0.00023,120]
[350923825,1738203211003,150.0,0.00021242,120]
[350923827,1738203685190,233.0,0.00023,120]
[350923828,1738203774093,398.96023649,0.00023,120]
[350923829,1738203791822,2000.0,0.00023,120]
[350923830,1738203803879,200.0,0.00023,120]
[350923831,1738203850882,245.42,0.00010137,2]
[350923858,1738204232481,-814.40888171,0.00015,2]
[350923859,1738204232492,-150.0,0.00015329,2]
[350923860,1738204232503,-741.13,0.00015659,2]
[350923861,1738204232514,-150.0,0.0001593,2]
[350923862,1738204232524,-150.0,0.000165,2]
[350923863,1738204232535,-176.14,0.00016712,2]
[350923864,1738204232546,-373.87,0.00016714,2]
[350923865,1738204232555,-376.86,0.00016714,2]
[350923866,1738204232565,-377.62,0.00016715,2]
[350923867,1738204232578,-375.72,0.00016716,2]
[350923868,1738204232588,-380.89,0.00016718,2]
[350923869,1738204232598,-3572.95925224,0.0001672,2]
[350923870,1738204232610,-9582.53290946,0.0001672,2]
[350923871,1738204232620,-379.63,0.0001672,2]
[350923872,1738204232630,-374.46,0.00016724,2]
[350923873,1738204232640,-381.35,0.00016729,2]
[350923874,1738204232650,-378.53,0.00016737,2]
[350923875,1738204232660,-379.27,0.00016748,2]
[350923876,1738204232669,-379.31,0.00016765,2]
[350923877,1738204232678,-372.41,0.00016789,2]
[350923878,1738204232688,-245.42,0.00016813,2]
[350923879,1738204232698,-376.38,0.00016826,2]
[350923880,1738204232707,-148.61428136,0.00016877,2]
[350923881,1738204232755,-718.0,0.00016877,2]
[350923882,1738204232767,-139.92571864,0.00016877,2]
[350923883,1738204232777,-381.46,0.00016878,2]
[350923884,1738204232786,-65.45123639,0.00016899,2]
[350923885,1738204232811,-6658.24876361,0.00016899,2]
[350923886,1738204232821,-382.4,0.00016954,2]
[350923887,1738204232832,-150.0,0.00017066,2]
[350923888,1738204232841,-379.32,0.00017066,2]
[350923889,1738204232850,-4479.07,0.00017119,2]
[350923890,1738204232859,-200.0,0.00017175,2]
[350923891,1738204232869,-378.47,0.00017231,2]
[350923892,1738204232878,-1000.0,0.00017277,2]
[350923893,1738204232888,-191.9,0.00017299,2]
[350923894,1738204232898,-250.0,0.00017331,2]
[350923895,1738204232907,-399.16,0.00017416,2]
[350923896,1738204232917,-590.93,0.00017442,2]
[350923897,1738204232927,-200.0,0.00017466,2]
[350923898,1738204232937,-369.35,0.00017478,2]
[350923899,1738204232946,-488.43,0.00017517,2]
[350923900,1738204232955,-1002.16659116,0.00017591,2]
[350923901,1738204232964,-23900.0,0.00017592,2]
[350923902,1738204232975,-181.11257535,0.00017713,2]
[350923903,1738204232984,-1410.961,0.00017713,2]
[350923904,1738204232993,-500.0,0.00017716,2]
[350923905,1738204233003,-500.0,0.00017748,2]
[350923906,1738204233013,-170.21,0.00017867,2]
[350923907,1738204233022,-741.13,0.00017923,2]
[350923908,1738204233032,-6924.12971229,0.00018,2]
[350923910,1738204233042,-1389.22,0.00018082,2]
[350923912,1738204233051,-4252.68896941,0.000181,2]
[350923914,1738204233062,-171.0,0.000181,5]
[350923916,1738204233072,-500.0,0.00018137,2]
[350923918,1738204233081,-176.61,0.00018305,2]
[350923920,1738204233092,-320.26,0.00018382,2]
[350923922,1738204233101,-320.26,0.00018386,2]
[350923924,1738204233112,-320.26,0.00018391,2]
[350923925,1738204233123,-320.26,0.00018396,2]
[350923926,1738204233133,-320.26,0.00018401,2]
[350923927,1738204233143,-320.26,0.00018406,2]
[350923929,1738204233153,-320.26,0.00018411,2]
[350923931,1738204233167,-320.26,0.00018415,2]
[350923933,1738204233178,-320.26,0.0001842,2]
[350923935,1738204233188,-320.26,0.00018425,2]
[350923937,1738204233198,-320.26,0.0001843,2]
[350923939,1738204233208,-320.26,0.00018435,2]
[350923941,1738204233218,-320.26,0.0001844,2]
[350923943,1738204233230,-320.26,0.00018445,2]
[350923945,1738204233240,-40.64067194,0.00018449,2]
[350923947,1738204233252,-279.61932806,0.00018449,2]
[350923949,1738204233262,-320.26,0.00018454,2]
[350923951,1738204233272,-320.26,0.00018459,2]
[350923953,1738204233282,-320.26,0.00018464,2]
[350923955,1738204233291,-320.26,0.00018469,2]
[350923957,1738204233301,-320.26,0.00018474,2]
[350923959,1738204233312,-150.0,0.00018631,2]
[350923961,1738204233322,-369.77,0.00018681,2]
[350923963,1738204233332,-500.0,0.000187,2]
[350923965,1738204233342,-1389.22,0.00018751,2]
[350923967,1738204233352,-376.52,0.00018763,2]
[350923969,1738204233362,-150.0,0.00018801,2]
[350923971,1738204233372,-300.0,0.00018821,2]
[350923973,1738204233382,-500.0,0.00018844,2]
[350923975,1738204233392,-379.33,0.00018881,2]
[350923977,1738204233401,-205.90160185,0.000189,2]
[350923979,1738204233411,-396.24717367,0.00019,2]
[350923981,1738204233420,-10233.72837625,0.00019,2]
[350923983,1738204233432,-688.68723581,0.00019,2]
[350923988,1738204233467,-2679.1788598,0.00019,2]
[350923990,1738204233486,-490.62,0.00019,2]
[350923993,1738204233502,-39446.54690266,0.00019,2]
[350923995,1738204233514,-9000.0,0.00019,2]
[350923997,1738204233525,-961.61,0.00019,2]
[350923999,1738204233538,-98666.60903361,0.00019,2]
[350924002,1738204233551,-14963.54589154,0.00019,2]
[350924004,1738204233564,-10333.13623004,0.00019,2]
[350924006,1738204233577,-15200.55034608,0.00019,2]
[350924009,1738204233589,-20079.60853897,0.00019024,3]
[350924011,1738204233602,-200.0,0.00019027,2]
[350924013,1738204233613,-191.9,0.00019029,2]
[350924015,1738204233626,-382.27,0.00019051,2]
[350924018,1738204233639,-694.0,0.00019096,2]
[350924020,1738204233651,-438.27,0.00019123,2]
[350924022,1738204233664,-300.25,0.00019123,2]
[350924024,1738204233676,-243.03,0.00019123,2]
[350924027,1738204233689,-180.8,0.00019123,2]
[350924029,1738204233702,-298.38,0.00019123,2]
[350924031,1738204233720,-983.66,0.00019123,2]
[350924033,1738204233733,-280.27,0.00019123,2]
[350924036,1738204233745,-983.66,0.00019123,2]
[350924038,1738204233758,-438.27,0.00019123,2]
[350924040,1738204233769,-150.0,0.00019123,2]
[350924042,1738204233780,-298.38,0.00019123,2]
[350924044,1738204233793,-150.0,0.00019123,2]
[350924047,1738204233807,-150.0,0.00019123,2]
[350924048,1738204233820,-151.57,0.00019123,2]
[350924049,1738204233834,-150.0,0.00019123,2]
[350924050,1738204233847,-983.66,0.00019123,2]
[350924051,1738204233860,-438.27,0.00019123,2]
[350924052,1738204233873,-273.77,0.00019123,2]
[350924053,1738204233887,-983.66,0.00019123,2]
[350924054,1738204233900,-150.0,0.00019123,2]
[350924055,1738204233912,-298.38,0.00019123,2]
[350924056,1738204233924,-438.27,0.00019123,2]
[350924057,1738204233936,-150.0,0.00019123,2]
[350924058,1738204233949,-298.38,0.00019123,2]
[350924059,1738204233961,-797.43,0.00019123,2]
[350924060,1738204233975,-983.66,0.00019123,2]
[350924061,1738204233986,-991.12,0.00019123,2]
[350924062,1738204233997,-150.0,0.00019123,2]
[350924063,1738204234009,-150.99,0.00019123,2]
[350924064,1738204234021,-298.38,0.00019123,2]
[350924065,1738204234036,-1966.2,0.00019123,2]
[350924066,1738204234049,-298.38,0.00019123,2]
[350924067,1738204234061,-150.0,0.00019123,2]
[350924068,1738204234075,-979.1,0.00019123,2]
[350924069,1738204234087,-298.38,0.00019123,2]
[350924070,1738204234099,-298.38,0.00019123,2]
[350924071,1738204234111,-150.0,0.00019123,2]
[350924072,1738204234123,-221.45,0.00019123,2]
[350924073,1738204234136,-150.0,0.00019123,2]
[350924074,1738204234149,-150.0,0.00019123,2]
[350924075,1738204234161,-155.78,0.00019178,2]
[350924076,1738204234173,-376.06,0.00019302,2]
[350924077,1738204234185,-1389.22,0.0001942,2]
[350924078,1738204234199,-1000.0,0.00019437,2]
[350924079,1738204234212,-1000.0,0.0001947,2]
[350924080,1738204234227,-216.68323284,0.0001948,2]
[350924081,1738204234241,-399.16,0.00019592,2]
[350924082,1738204234254,-205.90160185,0.0001965,2]
[350924083,1738204234265,-377.52,0.00019663,2]
[350924084,1738204234276,-1000.0,0.0001968,2]
[350924085,1738204234289,-155.78,0.00019711,2]
[350924086,1738204234300,-150.0,0.0001973,2]
[350924087,1738204234311,-150.0,0.00019731,2]
[350924088,1738204234322,-150.0,0.00019756,2]
[350924089,1738204234334,-187.90756023,0.00019762,2]
[350924090,1738204234345,-470.30364503,0.00019779,2]
[350924091,1738204234357,-500.0,0.00019779,2]
[350924092,1738204234370,-500.0,0.00019779,2]
[350924093,1738204234384,-500.0,0.00019779,2]
[350924094,1738204234396,-179.51278184,0.00019779,2]
[350924095,1738204234407,-580.67,0.00019779,2]
[350924096,1738204234417,-500.0,0.00019779,2]
[350924097,1738204234428,-1332.87,0.00019779,2]
[350924098,1738204234438,-500.0,0.00019779,2]
[350924099,1738204234449,-3941.23,0.00019779,2]
[350924100,1738204234460,-1119.75,0.00019779,2]
[350924101,1738204234476,-500.0,0.00019779,2]
[350924102,1738204234488,-500.0,0.00019779,2]
[350924103,1738204234500,-406.82032007,0.00019779,2]
[350924104,1738204234512,-500.0,0.00019779,2]
[350924105,1738204234523,-282.1648,0.0001978,2]
[350924106,1738204234534,-18452.0695,0.0001978,2]
[350924107,1738204234545,-44825.6487,0.0001978,2]
[350924108,1738204234556,-5000.0,0.0001978,2]
[350924109,1738204234567,-150.0,0.0001978,2]
[350924110,1738204234579,-585.63985851,0.0001978,2]
[350924111,1738204234590,-500.0,0.00019781,2]
[350924112,1738204234600,-500.0,0.00019789,2]
[350924113,1738204234611,-500.0,0.00019789,2]
[350924114,1738204234622,-315.75726225,0.00019789,2]
[350924115,1738204234633,-208.4937213,0.00019789,2]
[350924116,1738204234643,-461.58110473,0.00019789,2]
[350924117,1738204234655,-524.90841426,0.00019789,2]
[350924118,1738204234667,-500.0,0.00019789,2]
[350924119,1738204234678,-150.0,0.00019801,2]
[350924120,1738204234688,-150.0,0.00019819,2]
[350924121,1738204234699,-158.17944143,0.0001982,10]
[350924122,1738204234709,-150.0,0.00019825,2]
[350924123,1738204234727,-150.0,0.00019856,2]
[350924124,1738204234737,-150.0,0.00019865,2]
[350924125,1738204234748,-175.29822194,0.0001987,2]
[350924126,1738204234759,-1150.80146867,0.00019878,7]
[350924127,1738204234770,-500.0,0.00019879,2]
[350924128,1738204234781,-284.59,0.00019879,2]
[350924129,1738204234792,-500.0,0.00019879,2]
[350924130,1738204234803,-288.29182212,0.00019879,2]
[350924131,1738204234814,-738.87,0.00019879,2]
[350924132,1738204234825,-500.0,0.00019879,2]
[350924133,1738204234836,-500.0,0.00019879,2]
[350924134,1738204234847,-615.6537235,0.00019879,2]
[350924135,1738204234859,-302.43,0.00019879,2]
[350924136,1738204234870,-504.295837,0.00019879,7]
[350924137,1738204234881,-900.94,0.00019879,2]
[350924138,1738204234892,-500.0,0.00019879,2]
[350924139,1738204234903,-500.0,0.00019879,2]
[350924140,1738204234914,-500.0,0.00019879,2]
[350924141,1738204234924,-500.0,0.00019879,2]
[350924142,1738204234935,-500.0,0.00019879,2]
[350924143,1738204234946,-584.86,0.00019879,2]
[350924144,1738204234956,-202.62424752,0.00019879,2]
[350924145,1738204234967,-500.0,0.00019879,2]
[350924146,1738204234979,-500.0,0.00019879,2]
[350924147,1738204234989,-1999.0,0.00019879,2]
[350924148,1738204235000,-1999.0,0.00019879,2]
[350924149,1738204235012,-1999.0,0.00019879,2]
[350924150,1738204235023,-300.0,0.00019879,2]
[350924151,1738204235035,-1999.0,0.00019879,2]
[350924152,1738204235046,-1999.0,0.00019879,2]
[350924153,1738204235057,-1999.0,0.00019879,2]
[350924154,1738204235068,-1999.0,0.00019879,2]
[350924155,1738204235080,-1999.0,0.00019879,2]
[350924156,1738204235091,-1999.0,0.00019879,2]
[350924157,1738204235102,-1999.0,0.00019879,2]
[350924158,1738204235113,-1999.0,0.00019879,2]
[350924159,1738204235124,-1999.0,0.00019879,2]
[350924160,1738204235134,-671.93677381,0.00019879,2]
[350924161,1738204235145,-500.0,0.00019879,2]
[350924162,1738204235156,-3566.96,0.00019879,2]
[350924163,1738204235167,-361.64937524,0.00019879,2]
[350924164,1738204235178,-500.0,0.00019879,2]
[350924165,1738204235188,-500.0,0.00019879,2]
[350924166,1738204235199,-500.0,0.00019879,2]
[350924167,1738204235210,-152.063345,0.00019879,2]
[350924168,1738204235222,-500.0,0.00019879,2]
[350924169,1738204235232,-155.731314,0.00019879,2]
[350924170,1738204235243,-500.0,0.00019879,2]
[350924171,1738204235254,-151.0,0.00019879,2]
[350924172,1738204235265,-151.0,0.00019879,2]
[350924173,1738204235276,-151.0,0.00019879,2]
[350924174,1738204235287,-151.0,0.00019879,2]
[350924175,1738204235298,-500.0,0.00019879,2]
[350924176,1738204235309,-500.0,0.00019879,2]
[350924177,1738204235320,-500.0,0.00019879,2]
[350924178,1738204235331,-500.0,0.00019879,2]
[350924179,1738204235342,-170.41270161,0.00019879,2]
[350924180,1738204235353,-151.0,0.00019879,2]
[350924181,1738204235364,-151.0,0.00019879,2]
[350924182,1738204235374,-255.819461,0.00019879,2]
[350924183,1738204235385,-649.67739695,0.00019879,2]
[350924184,1738204235396,-500.0,0.00019879,2]
[350924185,1738204235407,-88097.36413175,0.00019879,2]
[350924186,1738204235422,-3470.94078903,0.00019879,2]
[350924187,1738204235446,-9053.36066244,0.00019879,2]
[350924188,1738204235459,-21213.80265,0.00019879,2]
[350924189,1738204235473,-1956.94,0.00019879,2]
[350924190,1738204235487,-302690.61578497,0.00019879,2]
[350924191,1738204235499,-15205.21163731,0.00019879,2]
[350924198,1738204238408,-380.07,0.00016899,2]
[350924199,1738204238418,-267.44289479,0.00019779,2]
[350924200,1738204238427,-437.00336858,0.00019789,2]
[350924201,1738204238437,-31138.83321958,0.00019879,2]
[350924202,1738204238462,-100364.56692579,0.00019879,2]
[350924203,1738204238520,-826.5321856,0.00019879,2]
[350924204,1738204238578,-282.933,0.00019879,2]
[350924205,1738204238590,-3539.184475,0.00019879,2]
[350924206,1738204238689,-79060.5871952,0.00019879,2]
[350924207,1738204238699,-144804.4992831,0.0001988,2]
[350924208,1738204238712,-488.45942115,0.0001988,2]
[350924209,1738204238739,-670.435461,0.0001988,2]
[350924271,1738204240452,-683.49040918,0.0001968,2]
[350924272,1738204240465,-685.28809042,0.0001968,2]
[350924273,1738204240480,-1131.2215004,0.0001968,2]
[350924274,1738204240490,-138.93707507,0.00019879,2]
[350924275,1738204240508,-61.55864693,0.00019879,2]
[350924276,1738204240519,-45721.66130935,0.0001988,2]
[350924277,1738204240529,-165.2308056,0.0001988,2]
[350924278,1738204240539,-10000.0,0.0001988,2]
[350924279,1738204240549,-10000.0,0.0001988,2]
[350924280,1738204240559,-10000.0,0.0001988,2]
[350924281,1738204240570,-180.648189,0.0001988,2]
[350924282,1738204240580,-10000.0,0.0001988,2]
[350924283,1738204240590,-180.648189,0.0001988,2]
[350924284,1738204240600,-10000.0,0.0001988,2]
[350924285,1738204240610,-151.0,0.0001988,2]
[350924286,1738204240620,-151.0,0.0001988,2]
[350924287,1738204240630,-151.0,0.0001988,2]
[350924288,1738204240640,-281.71864,0.0001988,2]
[350924289,1738204240651,-151.0,0.0001988,2]
[350924290,1738204240662,-151.0,0.0001988,2]
[350924291,1738204240673,-151.0,0.0001988,2]
[350924292,1738204240682,-150.0,0.00019884,2]
[350924293,1738204240693,-349.54869665,0.000199,5]
[350924294,1738204240703,-23123.47591026,0.000199,7]
[350924295,1738204240713,-767.98,0.000199,2]
[350924296,1738204240729,-500.0,0.00019916,2]
[350924297,1738204240739,-500.0,0.00019916,2]
[350924298,1738204240748,-500.0,0.00019916,2]
[350924299,1738204240759,-580.67,0.00019916,2]
[350924300,1738204240769,-500.0,0.00019916,2]
[350924301,1738204240779,-1332.87,0.00019916,2]
[350924302,1738204240789,-195.51148597,0.00019916,2]
[350924303,1738204240800,-3941.23,0.00019916,2]
[350924304,1738204240810,-1119.75,0.00019916,2]
[350924305,1738204240820,-500.0,0.00019916,2]
[350924306,1738204240829,-500.0,0.00019916,2]
[350924307,1738204240839,-500.0,0.00019916,2]
[350924308,1738204240848,-4499.6438,0.00019936,2]
[350924309,1738204240858,-500.0,0.0001994,2]
[350924310,1738204240868,-150.0,0.0001996,2]
[350924311,1738204240883,-500.0,0.00019963,2]
[350924312,1738204240893,-584.684,0.00019966,2]
[350924313,1738204240903,-1872.252,0.00019966,2]
[350924314,1738204240913,-1266.018,0.00019966,2]
[350924315,1738204240923,-913.587,0.00019966,2]
[350924316,1738204240933,-785.0,0.00019966,2]
[350924317,1738204240943,-3020.876,0.00019966,2]
[350924318,1738204240953,-539.775,0.00019966,2]
[350924320,1738204240963,-233.22,0.00019966,2]
[350924322,1738204240975,-1006.0,0.00019966,2]
[350924324,1738204240984,-150.919,0.00019966,2]
[350924325,1738204240994,-3908.0,0.00019966,2]
[350924326,1738204241003,-151.0,0.00019966,2]
[350924328,1738204241013,-1277.473,0.00019966,2]
[350924330,1738204241023,-151.0,0.00019966,2]
[350924332,1738204241033,-151.0,0.00019966,2]
[350924334,1738204241042,-151.0,0.00019966,2]
[350924336,1738204241052,-401.75983266,0.0001997,2]
[350924338,1738204241061,-514.0,0.0001997,2]
[350924340,1738204241071,-1183.0,0.00019972,2]
[350924342,1738204241081,-272.45655273,0.00019973,2]
[350924344,1738204241091,-500.0,0.00019973,2]
[350924346,1738204241100,-500.0,0.00019973,2]
[350924348,1738204241110,-500.0,0.00019973,2]
[350924350,1738204241120,-151.0,0.0001998,2]
[350924352,1738204241129,-151.0,0.0001998,2]
[350924354,1738204241139,-1000.0,0.0001998,2]
[350924356,1738204241149,-1000.0,0.0001998,2]
[350924358,1738204241158,-1000.0,0.0001998,2]
[350924360,1738204241167,-1000.0,0.0001998,2]
[350924362,1738204241176,-1000.0,0.0001998,2]
[350924364,1738204241186,-1000.0,0.0001998,2]
[350924366,1738204241196,-1142.37,0.0001998,2]
[350924368,1738204241205,-253.041236,0.0001998,2]
[350924370,1738204241215,-151.0,0.0001998,2]
[350924372,1738204241224,-491.325237,0.0001998,2]
[350924374,1738204241234,-491.325237,0.0001998,2]
[350924376,1738204241243,-10000.0,0.0001998,2]
[350924378,1738204241253,-10000.0,0.0001998,2]
[350924380,1738204241262,-10000.0,0.0001998,2]
[350924382,1738204241272,-180.648189,0.0001998,2]
[350924384,1738204241281,-10000.0,0.0001998,2]
[350924386,1738204241291,-180.648189,0.0001998,2]
[350924388,1738204241300,-8128.988483,0.0001998,2]
[350924390,1738204241310,-151.0,0.0001998,2]
[350924392,1738204241320,-150.0,0.00019983,2]
[350924394,1738204241329,-150.0,0.00019986,2]
[350924396,1738204241339,-500.0,0.00019995,7]
[350924398,1738204241348,-500.0,0.00019995,7]
[350924400,1738204241359,-500.0,0.00019995,7]
[350924403,1738204241370,-946.5513481,0.00019996,2]
[350924404,1738204241379,-303.7524393,0.00019996,2]
[350924407,1738204241393,-2139.6144862,0.00019996,2]
[350924409,1738204241403,-262.2111962,0.00019996,2]
[350924411,1738204241413,-500.67168124,0.00019999,2]
[350924413,1738204241423,-999.0,0.00019999,2]
[350924415,1738204241433,-1000.0,0.0002,2]
[350924418,1738204241443,-980.0,0.0002,2]
[350924420,1738204241454,-4001.0,0.0002,2]
[350924422,1738204241463,-935.4121554,0.0002,21]
[350924424,1738204241474,-41609.33379503,0.0002,2]
[350924426,1738204241483,-5613.06878241,0.0002,2]
[350924428,1738204241493,-2999.97,0.0002,2]
[350924430,1738204241503,-3000.0,0.0002,2]
[350924432,1738204241514,-3018.52,0.0002,2]
[350924433,1738204241523,-4112.44111224,0.0002,4]
[350924434,1738204241533,-233.887609,0.0002,2]
[350924435,1738204241543,-2000.0,0.0002,2]
[350924436,1738204241553,-2000.0,0.0002,2]
[350924437,1738204241563,-174.147922,0.0002,2]
[350924438,1738204241573,-151.0,0.0002,2]
[350924439,1738204241583,-151.0,0.0002,2]
[350924440,1738204241593,-151.0,0.0002,2]
[350924441,1738204241602,-179.260624,0.0002,2]
[350924442,1738204241613,-578.37168623,0.0002,4]
[350924443,1738204241622,-91065.70827787,0.0002,2]
[350924444,1738204241632,-138966.03579367,0.0002,2]
[350924445,1738204241643,-172.51881802,0.0002,4]
[350924446,1738204241653,-298.30158853,0.0002,2]
[350924447,1738204241663,-1468.4873278,0.0002,2]
[350924448,1738204241673,-150.0,0.0002,4]
[350924449,1738204241683,-150.0,0.0002,4]
[350924450,1738204241693,-4261.754226,0.0002,2]
[350924451,1738204241703,-305.78201659,0.0002,4]
[350924452,1738204241713,-151.0,0.0002,2]
[350924453,1738204241730,-491.325237,0.0002,2]
[350924454,1738204241740,-491.325237,0.0002,2]
[350924455,1738204241750,-491.325237,0.0002,2]
[350924456,1738204241761,-151.0,0.0002,2]
[350924457,1738204241771,-151.0,0.0002,2]
[350924458,1738204241781,-150.0,0.0002,4]
[350924459,1738204241791,-491.325237,0.0002,2]
[350924460,1738204241802,-491.325237,0.0002,2]
[350924461,1738204241812,-491.325237,0.0002,2]
[350924462,1738204241822,-150.0,0.0002,4]
[350924463,1738204241832,-150.0,0.0002,4]
[350924464,1738204241842,-172.88603965,0.0002,4]
[350924465,1738204241852,-150.0,0.0002,4]
[350924466,1738204241862,-150.0,0.0002,4]
[350924467,1738204241872,-7500.0,0.0002,2]
[350924468,1738204241882,-3832.71294793,0.0002,2]
[350924469,1738204241895,-97112.20347063,0.0002,2]
[350924470,1738204241909,-3054.01437093,0.0002,2]
[350924471,1738204241919,-10000.0,0.0002,2]
[350924472,1738204241929,-10000.0,0.0002,2]
[350924473,1738204241938,-10000.0,0.0002,2]
[350924474,1738204241948,-10000.0,0.0002,2]
[350924475,1738204241958,-10000.0,0.0002,2]
[350924476,1738204241970,-10000.0,0.0002,2]
[350924477,1738204241981,-10000.0,0.0002,2]
[350924478,1738204241992,-180.648189,0.0002,2]
[350924479,1738204242002,-10000.0,0.0002,2]
[350924480,1738204242011,-180.648189,0.0002,2]
[350924481,1738204242021,-180.648189,0.0002,2]
[350924482,1738204242030,-10000.0,0.0002,2]
[350924483,1738204242040,-10000.0,0.0002,2]
[350924484,1738204242050,-180.648189,0.0002,2]
[350924485,1738204242059,-10000.0,0.0002,2]
[350924486,1738204242069,-180.648189,0.0002,2]
[350924487,1738204242078,-10000.0,0.0002,2]
[350924488,1738204242088,-180.648189,0.0002,2]
[350924489,1738204242098,-151.0,0.0002,2]